Cogmind - Beta 13 @@@ ROGUE MODE // 2024.04.12 @ 19:37:51 Player: djrubbie Result: Destroyed by L-31 Rogue with Katana Performance ------------- Evolutions (1) 500 Regions Visited (3) 600 Robots Destroyed (94) 470 Value Destroyed (2059) 2059 Prototype IDs (3) 60 Alien Tech Used (0) 0 Bonus (96) 96 TOTAL SCORE: 3785 Bonus ------- High Alert Combat Kills 96 Cogmind --------- Core Integrity 0/400 Matter 267/300 Energy 279/280 System Corruption 1% Temperature Cool (0) Movement Treading (240) Ox1 Location -9/Materials Parts ------- > --- POWER (1) -------- Heavy Ion Engine > --- PROPULSION (2) --- Light Treads Light Treads > --- UTILITY (4) ------ High-capacity Storage Unit Signal Interpreter > --- WEAPON (2) ------- Improved Assault Rifle > --- INVENTORY (20) --- Improved Ion Engine Improved Ion Engine Improved Ion Engine Heavy Ion Engine Cooled Ion Engine Cooled Ion Engine Light Treads Light Treads Machine Analyzer Transport Network Coupler Hacking Suite Recalibrator Assault Rifle Assault Rifle Improved Assault Rifle Improved Assault Rifle Peak State ------------ > --- POWER ------------ Cooled Ion Engine > --- PROPULSION ------- Light Treads Light Treads > --- UTILITY ---------- Large Storage Unit Seismic Detector > --- WEAPON ----------- Improved Assault Rifle Improved Assault Rifle > --- INVENTORY -------- Improved Ion Engine Improved Ion Engine Improved Ion Engine Heavy Ion Engine Cooled Ion Engine Cooled Ion Engine Light Treads Light Treads Light Treads Transport Network Coupler Hacking Suite Assault Rifle Assault Rifle Improved Assault Rifle Improved Assault Rifle [Rating: 16] Favorites ----------- Power Heavy Ion Engine Engine Heavy Ion Engine Propulsion Light Treads Treads Light Treads Utility Seismic Detector Device Seismic Detector Storage Large Storage Unit Processor Signal Interpreter Weapon Improved Assault Rifle Ballistic Gun Improved Assault Rifle Launcher Grenade Launcher Build | -11 -10 -10 -9 ------- Run | Yrd Mat Min Mat Slots Evolved 2 | . . . 2 Power . | . . . . Propulsion . | . . . . Utility 2 | . . . 2 Weapon . | . . . . Parts Attached 34 | 7 8 . 19 Power 7 | 1 2 . 4 Engine 7 | 1 2 . 4 Core . | . . . . Reactor . | . . . . Propulsion 11 | 2 1 . 8 Treads 11 | 2 1 . 8 Leg . | . . . . Wheel . | . . . . Hover . | . . . . Flight . | . . . . Utility 5 | 2 1 . 2 Device 1 | 1 . . . Storage 3 | 1 1 . 1 Processor 1 | . . . 1 Hackware . | . . . . Protection . | . . . . Artifact . | . . . . Weapon 11 | 2 4 . 5 Energy Gun . | . . . . Energy Cannon . | . . . . Ballistic Gun 9 | 2 3 . 4 Ballistic Cannon . | . . . . Launcher 2 | . 1 . 1 Special Weapon . | . . . . Impact Weapon . | . . . . Slashing Weapon . | . . . . Piercing Weapon . | . . . . Special Melee Weapon . | . . . . Unidentified Prototypes 3 | . 1 . 2 Parts Lost 4 | . . . 4 Power . | . . . . Propulsion 2 | . . . 2 Utility 1 | . . . 1 Weapon 1 | . . . 1 Highest Loss Streak 1 | . . . 1 To Critical Strikes . | . . . . Average Slot Usage (%) 87 | . 99 100 77 Engine 12 | . 14 14 11 Treads 24 | . 28 28 21 Device 7 | . 14 14 2 Storage 12 | . 14 14 11 Processor 5 | . . . 9 Ballistic Gun 20 | . 24 14 20 Launcher 3 | . 2 14 1 Naked Turns . | . . . . Heaviest Build 55 | 13 34 34 55 Greatest Support 40 | 40 40 40 40 Greatest Overweight (x) 1 | . . . 1 Average Overweight (x) . | . . . . Largest Inventory Capacity 20 | 8 15 15 20 Average Capacity 16 | 6 14 15 19 Most Carried 17 | 5 10 10 17 Average Carried 10 | 1 7 9 13 Final Capacity 20 | 8 15 15 20 Final Carried 16 | 1 9 10 16 Class Distribution -------------------- 100% | Mutant Dominant Class ---------------- Mutant | -10/Materials Mutant | -10/Mines Mutant | -9/Materials Resources | -11 -10 -10 -9 ----------- Run | Yrd Mat Min Mat Matter Collected 1973 | 282 501 80 1110 Remotely . | . . . . Salvage Created 3278 | 71 816 152 2239 Parts 206 | 7 50 10 139 Haulers Intercepted 8 | . 2 . 6 Recyclers Shooed 8 | . 1 . 7 Parts Field Recycled . | . . . . Retrieved Matter . | . . . . Parts Self-Destructed . | . . . . Prevented . | . . . . Kills | -11 -10 -10 -9 ------- Run | Yrd Mat Min Mat Combat Hostiles Destroyed 53 | . 11 4 38 Guns 39 | . 11 1 27 AOE 14 | . . 3 11 Classes Destroyed 12 | 2 6 . 4 Worker 5 | . 2 . 3 Builder 4 | . 3 . 1 Tunneler 5 | 1 . 1 3 Hauler 8 | . 2 . 6 Recycler 9 | 1 2 . 6 Mechanic 1 | . . . 1 Operator 2 | . 1 . 1 Watcher 7 | . 2 . 5 Swarmer 11 | . . . 11 Grunt 34 | . 11 4 19 Duelist 1 | . . . 1 Sentry 7 | . . . 7 Best Kill Streak 7 | 2 6 3 7 Combat Bots Only 7 | . 3 2 7 Max Kills in Single Turn 5 | 1 2 2 5 Gunslinging . | . . . . Exploded 3 | . . 2 3 Melee . | . . . . Uniques/NPCs Destroyed . | . . . . Combat | -11 -10 -10 -9 -------- Run | Yrd Mat Min Mat Hostile Shots Fired 237 | . 68 11 158 Missed 76 | . 24 4 48 Damage Taken 2441 | . 574 123 1744 Core 485 | . 81 . 404 Absorbed by Shields . | . . . . Regen/Repaired (Parts) 64 | . 64 . . Core Remaining (%) 83 | 100 . 67 . Volleys Fired 245 | 2 70 10 163 Largest 2 | 2 2 2 2 Hottest 53 | 40 46 53 53 Shots Fired 450 | 4 139 15 292 Gun 435 | 4 138 10 283 Cannon . | . . . . Launcher 15 | . 1 5 9 Special . | . . . . Kinetic 435 | 4 138 10 283 Thermal . | . . . . Explosive 15 | . 1 5 9 Electromagnetic . | . . . . Robot Hit Streak 15 | 4 8 3 15 Robot Miss Streak 4 | . 4 1 4 Penetration Max . | . . . . Secondary Targets 6 | . 3 . 3 Max Gunslinging Chain 1 | . 1 . 1 Shots Hit Robots 301 | 4 84 9 204 Core Hits 136 | 3 34 8 91 Critical Kills 4 | . 2 . 2 Critical Parts Destroyed . | . . . . Critical Strikes 4 | . 2 . 2 Destroy 4 | . 2 . 2 Melee Attacks . | . . . . Impact . | . . . . Slashing . | . . . . Piercing . | . . . . Sneak Attacks . | . . . . Combat Hostiles . | . . . . Follow-up Attacks . | . . . . Damage Inflicted 5608 | 48 1258 399 3903 Guns 4417 | 48 1231 94 3044 Cannons . | . . . . Explosions 1123 | . 24 289 810 Melee . | . . . . Ramming 68 | . 3 16 49 Kinetic 4417 | 48 1231 94 3044 Thermal . | . . . . Explosive 1123 | . 24 289 810 Electromagnetic . | . . . . Impact . | . . . . Slashing . | . . . . Piercing . | . . . . Highest Corruption 1 | . . . 1 Average Corruption 1 | . . . 1 Corruption Purged . | . . . . Corruption Blocked . | . . . . Effects 9 | . . . 9 Message Errors 1 | . . . 1 Matter Fused 5 | . . . 5 Energy Discharges 2 | . . . 2 Misfires 1 | . . . 1 Overload Shots . | . . . . Overflow Damage 42 | . . 4 38 Projectiles . | . . . . Explosions 42 | . . 4 38 Melee . | . . . . Knockbacks . | . . . . Impact . | . . . . Kinetic . | . . . . Secondary . | . . . . Self-Inflicted Damage 278 | . . 24 254 Shots 7 | . . 1 6 Rammed 13 | . 1 3 9 Targets Rammed 15 | . 1 3 11 Kicked . | . . . . Crushed 2 | . . . 2 Highest Temperature 22 | . 10 7 22 Average Temperature 3 | . 2 3 4 Received Heat Transfer 873 | . 300 60 513 Siege Activations . | . . . . Robots Corrupted . | . . . . Combat Hostiles . | . . . . Parts Fried . | . . . . Impact Corruptions . | . . . . Robots Melted . | . . . . Combat Hostiles . | . . . . Parts Melted . | . . . . Heat Transferred . | . . . . Parts Sabotaged . | . . . . Parts Stolen . | . . . . Parts Stripped . | . . . . Power Chain Reactions . | . . . . Alert | -11 -10 -10 -9 ------- Run | Yrd Mat Min Mat Peak Influence 697 | 10 171 146 697 Initial 6 | . 6 . . Average 226 | 5 33 34 381 Maximum Alert Level 2 | . . . 2 Low Security (%) 61 | 100 100 100 31 Level 1 10 | . . . 19 Level 2 27 | . . . 49 Level 3 . | . . . . Level 4 . | . . . . Level 5 . | . . . . High Security . | . . . . Max Security . | . . . . Squads Dispatched 5 | . 1 . 4 Investigation 3 | . 1 . 2 Extermination . | . . . . Reinforcement . | . . . . Assault 2 | . . . 2 Garrison . | . . . . Intercept . | . . . . Searches Triggered . | . . . . Construction Impeded . | . . . . Haulers Reinforced . | . . . . Active Scanning Responses . | . . . . Cargo Convoy Interrupts . | . . . . Stealth | -11 -10 -10 -9 --------- Run | Yrd Mat Min Mat Distress Signals 5 | . 1 . 4 Communications Jammed . | . . . . Distress Signals . | . . . . Times Spotted 78 | . 15 4 59 Peak Tracking Total 5 | . 4 2 5 Tactical Retreats 2 | . . . 2 Traps | -11 -10 -10 -9 ------- Run | Yrd Mat Min Mat Traps Triggered 4 | . 2 . 2 Indirectly . | . . . . Trap Hack Attempts . | . . . . Triggered . | . . . . Disarmed . | . . . . Reprogrammed . | . . . . Reused . | . . . . Traps Extracted . | . . . . Installed . | . . . . Triggered . | . . . . Machines | -11 -10 -10 -9 ---------- Run | Yrd Mat Min Mat Machines Disabled 4 | . . 1 3 Max in Single Turn 1 | . . 1 1 Machines Repaired . | . . . . Machines Dismantled . | . . . . Machines Sabotaged . | . . . . Overloaded Fab Kills . | . . . . Hacking | -11 -10 -10 -9 --------- Run | Yrd Mat Min Mat Machines Accessed 10 | . 6 . 4 Terminals 6 | . 4 . 2 Fabricators . | . . . . Repair Stations 1 | . 1 . . Recycling Units 3 | . 1 . 2 Scanalyzers . | . . . . Garrison Access . | . . . . Total Hacks 16 | . 11 . 5 Successful 11 | . 7 . 4 Failed 5 | . 4 . 1 Catastrophic 1 | . . . 1 Database Lockouts . | . . . . Manual . | . . . . Terminals 10 | . 8 . 2 Fabricators . | . . . . Repair Stations 2 | . 2 . . Recycling Units 4 | . 1 . 3 Scanalyzers . | . . . . Garrison Access . | . . . . Terminal Hacks 6 | . 4 . 2 Record 1 | . . . 1 Robot Analysis 1 | . . . 1 Maintenance Status 2 | . 2 . . Transport Status 1 | . 1 . . Hauler Manifests 1 | . 1 . . Fabricator Hacks . | . . . . Repair Station Hacks 2 | . 2 . . Scan Component 1 | . 1 . . Repair 1 | . 1 . . Recycling Unit Hacks 3 | . 1 . 2 Report Inventory 2 | . 1 . 1 Retrieve Components 1 | . . . 1 Scanalyzer . | . . . . Garrison Access Hacks . | . . . . Unauthorized Hacks . | . . . . Terminals . | . . . . Fabricators . | . . . . Repair Stations . | . . . . Recycling Units . | . . . . Scanalyzers . | . . . . Garrison Access . | . . . . Data Cores Recovered 1 | . 1 . . Used 1 | . 1 . . Hacking Detections 5 | . 3 . 2 Full Trace Events 1 | . . . 1 Feedback Events 1 | . . . 1 Corruption 1 | . . . 1 Feedback Blocked . | . . . . Robot Schematics Acquired . | . . . . Robots Built . | . . . . Authchips . | . . . . Time . | . . . . Total Robot Build Rating . | . . . . Part Schematics Acquired . | . . . . Parts Built . | . . . . Authchips . | . . . . Time . | . . . . Total Part Build Rating . | . . . . Parts Repaired 1 | . 1 . . Time 51 | . 51 . . Parts Recycled . | . . . . Recycled Matter . | . . . . Retrieved Matter . | . . . . Retrieved Components 10 | . . . 10 Parts Scanalyzed . | . . . . Part Schematics Acquired . | . . . . Parts Damaged . | . . . . Bothacking | -11 -10 -10 -9 ------------ Run | Yrd Mat Min Mat Used RIF Installer . | . . . . Robots Hacked . | . . . . Non-combat . | . . . . Combat . | . . . . Robot Hacks Applied . | . . . . Relay Couplers Released . | . . . . Fabnet Peak Effective % . | . . . . Robots Rewired . | . . . . Allies Hacked . | . . . . Hacks Repelled . | . . . . Allies | -11 -10 -10 -9 -------- Run | Yrd Mat Min Mat Total Allies . | . . . . Largest Group . | . . . . Highest-Rated Group . | . . . . Highest-Rated Ally . | . . . . Total Orders . | . . . . Ally Attacks . | . . . . Total Damage . | . . . . Kills . | . . . . Allies Corrupted . | . . . . Allies Melted . | . . . . Intel | -11 -10 -10 -9 ------- Run | Yrd Mat Min Mat Robot Analysis Total 1 | . . . 1 Derelict Logs Recovered 1 | . . 1 . Drone Launches . | . . . . Drone Recoveries . | . . . . Exploration | -11 -10 -10 -9 ------------- Run | Yrd Mat Min Mat Turns Passed 7320 | 92 2124 1035 4069 Spaces Moved 3119 | 52 911 607 1549 Core 14 | 14 . . . Treads 3105 | 38 911 607 1549 Legs . | . . . . Wheels . | . . . . Hover . | . . . . Flight . | . . . . Fastest Speed 50 | 50 160 160 160 Average Speed 190 | 130 160 160 221 Slowest Speed 240 | 160 160 160 240 Overloaded Moves . | . . . . Propulsion Burnouts . | . . . . Robots Hopped . | . . . . Cave-ins Triggered . | . . . . Exploration Rate (%) 72 | 4 99 100 87 Regions Visited 3 Branch Regions 1 Pre-discovered Areas 2 | . . 2 . Known Exits Taken . | . . . . Unknown Exits Taken 3 | 1 1 1 . Scrap Searched 1 | . . 1 . Spaces Dug 19 | . 8 . 11 Terrain Destroyed 133 | . 8 42 83 Melee . | . . . . Projectile . | . . . . AOE 133 | . 8 42 83 Terrain Rammed . | . . . . Walls Destroyed . | . . . . Machines Disabled . | . . . . Actions | -11 -10 -10 -9 --------- Run | Yrd Mat Min Mat Total 4050 | 74 1439 654 1883 Wait 561 | . 421 34 106 Move 3116 | 51 910 606 1549 Hop . | . . . . Pick Up 54 | 11 19 1 23 Fast Attach . | . . . . Attach 17 | 7 1 . 9 Detach . | . . . . Swap 17 | . 7 . 10 Drop 25 | 3 10 . 12 Fire 245 | 2 70 10 163 Melee . | . . . . Ram . | . . . . Kick . | . . . . Crush 15 | . 1 3 11 Escape Stasis . | . . . . Rewire . | . . . . Trap . | . . . . Miscellaneous . | . . . . Route ------- -11/Scrapyard -10/Materials (discovered 3 exits: *Mat x2 / [*Min]) -10/Mines (discovered 2 exits: *Mat x2) -9/Materials (discovered 4 exits: [*Mat x3] / [*Min]) History --------- Turn | Location | Event 5 | -11/Scrapyard | Discovered new exit (range 15) 93 | -11/Scrapyard | Entered Materials 292 | -10/Materials | Discovered new exit (range 12) 331 | -10/Materials | Build established: Mutant 603 | -10/Materials | Discovered new exit (range 16) 1671 | -10/Materials | Repaired Imp. Assault Rifle 1816 | -10/Materials | Discovered new exit (range 8) 2217 | -10/Materials | Entered Mines 2218 | -10/Mines | Learned location of Storage (-8) 2360 | -10/Mines | Discovered new exit (range 4) 2415 | -10/Mines | Learned location of Zion (-7) 2897 | -10/Mines | Discovered new exit (range 9) 3252 | -10/Mines | Entered Materials 3252 | -9/Materials | Evolved 2 slots: Utility x2 3601 | -9/Materials | Discovered new exit (range 11) 4365 | -9/Materials | Discovered new exit (range 15) 5168 | -9/Materials | Core integrity fell below 50% 5207 | -9/Materials | Destroyed 7 combat bots 5464 | -9/Materials | Discovered new exit (range 15) 5652 | -9/Materials | First assault squad dispatched 5859 | -9/Materials | Discovered new exit (range 16) 6201 | -9/Materials | Core integrity fell below 20% 7321 | -9/Materials | Destroyed by L-31 Rogue with Katana Last Messages --------------- R-06 Scavenger collects Aluminum Leg. K-01 Serf collects debris. R-06 Scavenger collects Lgt. Ion Engine. K-01 Serf collects debris. R-06 Scavenger collects Heat Sink. R-06 Scavenger collects Ion Engine. K-01 Serf collects debris. Acquired 6 matter. System corrupted: Energy discharge (-75). A-02 Transporter suffers critical hit (Destroy). A-02 Transporter destroyed. K-01 Serf collects debris. Acquired Lgt. Treads. ALERT: Significant disruption in Zone 8H, assault force dispatched. C-30 ARC bursts open, deploying its payload. G-47 Trooper unfolds itself. G-34 Mercenary unfolds itself. L-31 Rogue unfolds itself. Imp. Assault Rifle severed. Map ----- +----------------------------------------------------+ | #?# # [[#????????????????????????????###?## | | #?# # [%#??????????????????????????????#### | | #?# + =[#?????###??????????????????????# | | #?# # !#?##### ########???????????????# | | #?# # ### # "T" #???????????????# | | #?# # # ! #???????????????# | | #?# # # #???????????????# | | #?# # # #???????????????# | | #?# # # #???????????????# | | #########+## # """ #???????????????# | | # # + ! """ #???????????????# | | # # ### # """ #???????????????#### | | " # + %#?# # #??????????????????? | | " # #+###+#### ##########????????????????### | | " # # # #????????????????????# | | # # # % #????????????????????# | | " # # # ##########???????????# " | | " ####### ###### i# ##########??# " | | " #?????# #????# # # #??# " | | #?????# #????# g # # #??# | | #?????# #????# g# # ###### | | #?????# #????# + # # | | ###?????# #????# # # + | | ????????##########????# # # # | | ??????????????????????# ll/ # ###+## | | ??????????????????????# @# # ## | | ????????????###??###### ########## ## | | ????????????# """"""" # #????????########### = | | ????????????# """"""" # #??????????????????# | | ????????????# """"""" # #??????????????????# | | ????????????# """"""" + #??????????????????# "" | | ????????????# """"""" # #??????????????????# "Y | | ????????????# # #??????????????????# "" | | ????????????# # #??????????????????# | | ????????????# # #??????????????????##### | | ????????????########### #??????????????????????? | | ??????????????????????# #??????????????????????? | | ??????????????????????# < #??????????????????????? | | ??????????????????????# #??????????????????????? | | ??????????????????????#####??????????????????????? | | ?????????????????????????????????????????????????? | | ?????????????????????????????????????????????????? | | ?????????????????????????????????????????????????? | | ?????????????????????????????????????????????????? | | ?????????????????????????????????????????????????? | | ?????????????????????????????????????????????????? | | | | | | | | | +----------------------------------------------------+ Best States ------------- Heat Dissipation 28 Energy Generation 14 Energy Capacity 280 Matter Stores 300 Matter Capacity 300 Sight Range 16 Terrain Scan Density 10 Evasion (%) 50 Recoil Reduction 2 Item Schematics ----------------- None Robot Schematics ------------------ None Fabricated ------------ Nothing Alien Tech Used ----------------- None Achievements -------------- None Challenges ------------ None Game ------ Seed PropulsionLightRail Manual? 0 Play Time 00:43:34 Cumulative 16.4 hours Start 2024.04.12 @ 18:25:40 End 2024.04.12 @ 19:37:51 Sessions 2 Manual Loads 0 Difficulty Rogue Special Mode None Game No. 20 Rogue 20 Adventurer 0 Explorer 0 Win Type - Total 0 Types 0/0/0/0/0/0/0/0/0 Lore% 16 Gallery% 12 Achievement% 16 Wizard Run 0 Options --------- Layout 1 ASCII 0 Keyboard 0 Movement Mouse Keybinds 0 Fullscreen 0 Font 28/SmallcapsGlow Map View 50x35 Zoom Use 0% Tactical HUD 0 Map Filters NONE Filters NONE Steam 1 RUN: b7a412fe-bf48-41a4-918f-9ff96014eac1